Cogmind - Beta 13 @@@ ROGUE MODE // 2024.06.27 @ 21:48:32 Player: sormi Result: Destroyed by L-31 Rogue with Katana Performance ------------- Evolutions (0) 0 Regions Visited (4) 800 Robots Destroyed (16) 80 Value Destroyed (302) 302 Prototype IDs (1) 20 Alien Tech Used (0) 0 Bonus (300) 300 TOTAL SCORE: 1502 Bonus ------- Aligned with FarCom 300 Cogmind --------- Core Integrity 0/250 Matter 299/400 Energy 100/100 System Corruption 0% Temperature Cool (12) Movement Core (150) Ox2 Location -9/Mines Parts ------- > --- POWER (1) -------- (None) > --- PROPULSION (2) --- (None) > --- UTILITY (2) ------ Medium Matter Pod > --- WEAPON (2) ------- Small Laser Rocket Launcher > --- INVENTORY (5) ---- Medium Storage Unit Large Storage Unit Field Recycling Unit (0) Guided Plasma Cannon Assault Rifle Peak State ------------ > --- POWER ------------ Light Ion Engine > --- PROPULSION ------- Aluminum Leg Aluminum Leg > --- UTILITY ---------- Medium Matter Pod Light Armor Plating > --- WEAPON ----------- Guided Plasma Cannon Assault Rifle > --- INVENTORY -------- Medium Storage Unit Large Storage Unit Small Laser [Rating: 14] Favorites ----------- Power Light Ion Engine Engine Light Ion Engine Propulsion Aluminum Leg Leg Aluminum Leg Wheel Wheel Flight Unit Flight Unit Utility Medium Matter Pod Device Sensor Array Storage Medium Matter Pod Processor Visual Processing Unit Protection Light Armor Plating Weapon Assault Rifle Energy Gun Small Laser Energy Cannon Guided Plasma Cannon Ballistic Gun Assault Rifle Launcher Rocket Launcher Build | -11 -10 -10 -10 -9 ------- Run | Yrd Mat Min Exi Min Slots Evolved . | . . . . . Power . | . . . . . Propulsion . | . . . . . Utility . | . . . . . Weapon . | . . . . . Parts Attached 36 | 8 9 11 6 2 Power 6 | 3 2 1 . . Engine 6 | 3 2 1 . . Core . | . . . . . Reactor . | . . . . . Propulsion 8 | 3 1 4 . . Treads . | . . . . . Leg 5 | 2 1 2 . . Wheel 1 | 1 . . . . Hover . | . . . . . Flight 2 | . . 2 . . Utility 11 | . 3 4 4 . Device 1 | . 1 . . . Storage 7 | . 1 3 3 . Processor 1 | . 1 . . . Hackware . | . . . . . Protection 2 | . . 1 1 . Artifact . | . . . . . Weapon 11 | 2 3 2 2 2 Energy Gun 4 | 1 1 1 . 1 Energy Cannon 1 | . . . 1 . Ballistic Gun 5 | 1 2 1 1 . Ballistic Cannon . | . . . . . Launcher 1 | . . . . 1 Special Weapon . | . . . . . Impact Weapon . | . . . . . Slashing Weapon . | . . . . . Piercing Weapon . | . . . . . Special Melee Weapon . | . . . . . Unidentified Prototypes 1 | . . . 1 . Parts Lost 7 | . 2 1 . 4 Power 2 | . . 1 . 1 Propulsion 2 | . . . . 2 Utility 2 | . 1 . . 1 Weapon 1 | . 1 . . . Highest Loss Streak 3 | . 2 1 . 3 To Critical Strikes . | . . . . . Average Slot Usage (%) 91 | . 87 94 91 90 Engine 13 | . 14 13 14 14 Leg 26 | . 28 27 28 19 Storage 18 | . 8 22 22 14 Processor 1 | . 5 . . . Protection 3 | . . 1 1 13 Energy Gun 9 | . 13 14 9 2 Energy Cannon 4 | . . . 4 10 Ballistic Gun 11 | . 13 14 10 10 Naked Turns . | . . . . . Heaviest Build 33 | 6 19 21 33 20 Greatest Support 20 | 20 20 20 20 20 Greatest Overweight (x) 6 | . . 1 1 6 Average Overweight (x) . | . . . . 1 Largest Inventory Capacity 15 | 5 10 10 15 5 Average Capacity 9 | 5 8 9 12 5 Most Carried 10 | 4 10 9 8 5 Average Carried 5 | 1 6 5 6 4 Final Capacity 10 | 5 10 10 5 5 Final Carried 10 | 4 10 6 3 5 Class Distribution -------------------- 58% | Mutant 41% | Scavenger-Mutant Dominant Class ---------------- Mutant | -10/Materials Scavenger-Mutant | -10/Mines Scavenger-Mutant | -10/Exiles Mutant | -9/Mines Resources | -11 -10 -10 -10 -9 ----------- Run | Yrd Mat Min Exi Min Matter Collected 724 | 288 147 93 . 196 Remotely . | . . . . . Salvage Created 357 | 33 161 78 . 85 Parts 28 | 1 12 8 . 7 Haulers Intercepted . | . . . . . Recyclers Shooed 1 | . . . . 1 Parts Field Recycled . | . . . . . Retrieved Matter . | . . . . . Parts Self-Destructed . | . . . . . Prevented . | . . . . . Kills | -11 -10 -10 -10 -9 ------- Run | Yrd Mat Min Exi Min Combat Hostiles Destroyed 14 | 1 3 5 . 5 Guns 9 | 1 3 5 . . Cannons 4 | . . . . 4 AOE 1 | . . . . 1 Classes Destroyed 3 | 1 1 1 . . Watcher 2 | . 2 . . . Swarmer 9 | . . 5 . 4 Grunt 5 | 1 3 . . 1 Best Kill Streak 4 | 1 1 3 . 4 Combat Bots Only 4 | 1 1 3 . 4 Max Kills in Single Turn 1 | 1 1 1 . 1 Gunslinging . | . . . . . Exploded 1 | . . . . 1 Melee . | . . . . . Uniques/NPCs Destroyed . | . . . . . Combat | -11 -10 -10 -10 -9 -------- Run | Yrd Mat Min Exi Min Hostile Shots Fired 134 | 6 45 63 . 20 Missed 38 | 2 12 20 . 4 Damage Taken 980 | 43 333 356 . 248 Core 262 | 22 75 58 . 107 Absorbed by Shields . | . . . . . Core Remaining (%) 91 | 91 . . . . Volleys Fired 65 | 5 29 21 . 10 Largest 2 | 2 2 2 . 2 Hottest 120 | 60 60 60 . 120 Shots Fired 121 | 10 58 42 . 11 Gun 112 | 10 58 42 . 2 Cannon 8 | . . . . 8 Launcher 1 | . . . . 1 Special . | . . . . . Kinetic 55 | 5 29 21 . . Thermal 65 | 5 29 21 . 10 Explosive 1 | . . . . 1 Electromagnetic . | . . . . . Robot Hit Streak 9 | 3 4 5 . 9 Robot Miss Streak 6 | 2 3 6 . 1 Penetration Max . | . . . . . Secondary Targets 1 | . . 1 . . Max Gunslinging Chain 1 | . . 1 . . Shots Hit Robots 49 | 6 25 9 . 9 Core Hits 22 | 2 9 5 . 6 Critical Kills . | . . . . . Critical Parts Destroyed . | . . . . . Critical Strikes . | . . . . . Melee Attacks . | . . . . . Impact . | . . . . . Slashing . | . . . . . Piercing . | . . . . . Sneak Attacks . | . . . . . Combat Hostiles . | . . . . . Follow-up Attacks . | . . . . . Damage Inflicted 875 | 69 277 116 . 413 Guns 466 | 69 277 110 . 10 Cannons 282 | . . . . 282 Explosions 121 | . . . . 121 Melee . | . . . . . Ramming 6 | . . 6 . . Kinetic 244 | 26 163 55 . . Thermal 504 | 43 114 55 . 292 Explosive 121 | . . . . 121 Electromagnetic . | . . . . . Impact . | . . . . . Slashing . | . . . . . Piercing . | . . . . . Highest Corruption . | . . . . . Average Corruption . | . . . . . Corruption Purged . | . . . . . Corruption Blocked . | . . . . . Overload Shots . | . . . . . Overflow Damage 28 | . . . . 28 Projectiles 6 | . . . . 6 Explosions 22 | . . . . 22 Melee . | . . . . . Knockbacks . | . . . . . Impact . | . . . . . Kinetic . | . . . . . Secondary . | . . . . . Self-Inflicted Damage 37 | . . . . 37 Shots 1 | . . . . 1 Rammed . | . . . . . Targets Rammed 1 | . . 1 . . Kicked 1 | . . 1 . . Crushed . | . . . . . Highest Temperature 592 | 24 48 . . 592 Average Temperature 158 | 19 20 . . 291 Received Heat Transfer 174 | 24 138 6 . 6 Effects 11 | . . . . 11 Shutdowns 1 | . . . . 1 Energy Bleed 2 | . . . . 2 Matter Decay 1 | . . . . 1 Short Circuit 2 | . . . . 2 Damage (minor) 1 | . . . . 1 Damage (major) 3 | . . . . 3 Damage (core) 1 | . . . . 1 Siege Activations . | . . . . . Robots Corrupted . | . . . . . Combat Hostiles . | . . . . . Parts Fried . | . . . . . Impact Corruptions . | . . . . . Robots Melted . | . . . . . Combat Hostiles . | . . . . . Parts Melted 3 | 1 . 1 . 1 Heat Transferred 1140 | 100 250 125 . 665 Parts Sabotaged . | . . . . . Parts Stolen . | . . . . . Parts Stripped . | . . . . . Power Chain Reactions . | . . . . . Alert | -11 -10 -10 -10 -9 ------- Run | Yrd Mat Min Exi Min Peak Influence 174 | 20 174 116 . 90 Initial 13 | . 13 6 . . Average 55 | 2 76 71 . 33 Maximum Alert Level . | . . . . . Low Security (%) 100 | 100 100 100 . 100 Level 1 . | . . . . . Level 2 . | . . . . . Level 3 . | . . . . . Level 4 . | . . . . . Level 5 . | . . . . . High Security . | . . . . . Max Security . | . . . . . Squads Dispatched 2 | . 2 . . . Investigation . | . . . . . Extermination . | . . . . . Reinforcement 2 | . 2 . . . Assault . | . . . . . Garrison . | . . . . . Intercept . | . . . . . Searches Triggered . | . . . . . Construction Impeded . | . . . . . Haulers Reinforced . | . . . . . Active Scanning Responses . | . . . . . Cargo Convoy Interrupts . | . . . . . Stealth | -11 -10 -10 -10 -9 --------- Run | Yrd Mat Min Exi Min Distress Signals 2 | . 2 . . . Communications Jammed . | . . . . . Distress Signals . | . . . . . Times Spotted 31 | 1 15 8 . 7 Peak Tracking Total 6 | 1 6 3 . 4 Tactical Retreats . | . . . . . Traps | -11 -10 -10 -10 -9 ------- Run | Yrd Mat Min Exi Min Traps Triggered 2 | . 2 . . . Indirectly . | . . . . . Trap Hack Attempts . | . . . . . Triggered . | . . . . . Disarmed . | . . . . . Reprogrammed . | . . . . . Reused . | . . . . . Traps Extracted . | . . . . . Installed . | . . . . . Triggered . | . . . . . Machines | -11 -10 -10 -10 -9 ---------- Run | Yrd Mat Min Exi Min Machines Disabled 1 | . . . . 1 Max in Single Turn 1 | . . . . 1 Machines Repaired . | . . . . . Machines Dismantled . | . . . . . Machines Sabotaged . | . . . . . Overloaded Fab Kills . | . . . . . Hacking | -11 -10 -10 -10 -9 --------- Run | Yrd Mat Min Exi Min Machines Accessed 3 | . 2 . 1 . Terminals 2 | . 2 . . . Fabricators . | . . . . . Repair Stations . | . . . . . Recycling Units . | . . . . . Scanalyzers . | . . . . . Garrison Access . | . . . . . Total Hacks 10 | . 6 . 4 . Successful 6 | . 2 . 4 . Failed 4 | . 4 . . . Catastrophic 1 | . 1 . . . Database Lockouts . | . . . . . Manual 2 | . . . 2 . Terminals 6 | . 6 . . . Fabricators . | . . . . . Repair Stations . | . . . . . Recycling Units . | . . . . . Scanalyzers . | . . . . . Garrison Access . | . . . . . Terminal Hacks 6 | . 2 . 4 . Record 6 | . 2 . 4 . Fabricator Hacks . | . . . . . Repair Station Hacks . | . . . . . Recycling Unit Hacks . | . . . . . Scanalyzer . | . . . . . Garrison Access Hacks . | . . . . . Unauthorized Hacks . | . . . . . Terminals . | . . . . . Fabricators . | . . . . . Repair Stations . | . . . . . Recycling Units . | . . . . . Scanalyzers . | . . . . . Garrison Access . | . . . . . Data Cores Recovered . | . . . . . Used . | . . . . . Hacking Detections 1 | . 1 . . . Full Trace Events 1 | . 1 . . . Feedback Events . | . . . . . Feedback Blocked . | . . . . . Robot Schematics Acquired . | . . . . . Robots Built . | . . . . . Authchips . | . . . . . Time . | . . . . . Total Robot Build Rating . | . . . . . Part Schematics Acquired . | . . . . . Parts Built . | . . . . . Authchips . | . . . . . Time . | . . . . . Total Part Build Rating . | . . . . . Parts Repaired . | . . . . . Time . | . . . . . Parts Recycled . | . . . . . Recycled Matter . | . . . . . Retrieved Matter . | . . . . . Retrieved Components . | . . . . . Parts Scanalyzed . | . . . . . Part Schematics Acquired . | . . . . . Parts Damaged . | . . . . . Bothacking | -11 -10 -10 -10 -9 ------------ Run | Yrd Mat Min Exi Min Used RIF Installer . | . . . . . Robots Hacked . | . . . . . Non-combat . | . . . . . Combat . | . . . . . Robot Hacks Applied . | . . . . . Relay Couplers Released . | . . . . . Fabnet Peak Effective % . | . . . . . Robots Rewired . | . . . . . Allies Hacked . | . . . . . Hacks Repelled . | . . . . . Allies | -11 -10 -10 -10 -9 -------- Run | Yrd Mat Min Exi Min Total Allies . | . . . . . Largest Group . | . . . . . Highest-Rated Group . | . . . . . Highest-Rated Ally . | . . . . . Total Orders . | . . . . . Ally Attacks . | . . . . . Total Damage . | . . . . . Kills . | . . . . . Allies Corrupted . | . . . . . Allies Melted . | . . . . . Intel | -11 -10 -10 -10 -9 ------- Run | Yrd Mat Min Exi Min Robot Analysis Total . | . . . . . Derelict Logs Recovered 1 | . . . . 1 Drone Launches . | . . . . . Drone Recoveries . | . . . . . Exploration | -11 -10 -10 -10 -9 ------------- Run | Yrd Mat Min Exi Min Turns Passed 3149 | 136 574 331 1629 479 Spaces Moved 1990 | 102 383 198 1056 251 Core 95 | 24 . . . 71 Treads . | . . . . . Legs 1893 | 76 383 198 1056 180 Wheels 2 | 2 . . . . Hover . | . . . . . Flight . | . . . . . Fastest Speed 50 | 50 120 120 120 120 Average Speed 142 | 102 120 120 152 169 Slowest Speed 350 | 120 120 190 190 350 Overloaded Moves . | . . . . . Propulsion Burnouts . | . . . . . Robots Hopped . | . . . . . Cave-ins Triggered . | . . . . . Exploration Rate (%) 39 | 7 39 23 91 38 Regions Visited 4 Branch Regions 3 Pre-discovered Areas . | . . . . . Known Exits Taken . | . . . . . Unknown Exits Taken 4 | 1 1 1 1 . Scrap Searched 1 | . . . . 1 Spaces Dug . | . . . . . Terrain Destroyed 11 | . . . . 11 Melee . | . . . . . Projectile . | . . . . . AOE 11 | . . . . 11 Terrain Rammed . | . . . . . Walls Destroyed . | . . . . . Machines Disabled . | . . . . . Actions | -11 -10 -10 -10 -9 --------- Run | Yrd Mat Min Exi Min Total 2184 | 122 438 252 1076 296 Wait 36 | . 4 5 . 27 Move 1986 | 101 382 197 1055 251 Hop . | . . . . . Pick Up 31 | 5 10 7 5 4 Fast Attach 12 | 4 7 . 1 . Attach 20 | 4 1 9 4 2 Detach 13 | 3 1 5 4 . Swap 4 | . 1 2 1 . Drop 16 | . 3 5 6 2 Fire 65 | 5 29 21 . 10 Melee . | . . . . . Ram . | . . . . . Kick 1 | . . 1 . . Crush . | . . . . . Escape Stasis . | . . . . . Rewire . | . . . . . Trap . | . . . . . Miscellaneous . | . . . . . Route ------- -11/Scrapyard -10/Materials -10/Mines -10/Exiles (discovered 2 exits: [*Min x2]) -9/Mines (discovered 2 exits: [*Mat x2]) History --------- Turn | Location | Event 2 | -11/Scrapyard | Met Revision 17 98 | -11/Scrapyard | Discovered new exit (range 8) 137 | -11/Scrapyard | Entered Materials 292 | -10/Materials | Discovered new exit (range 16) 318 | -10/Materials | Build established: Mutant 711 | -10/Materials | Entered Mines 719 | -10/Mines | Met a Derelict bent on vengeance 787 | -10/Mines | Core integrity fell below 50% 966 | -10/Mines | Deemed a non-threat by the Exiles lab entrance 966 | -10/Mines | Discovered new exit (range 5) 1042 | -10/Mines | Entered Exiles 1060 | -10/Exiles | Discovered new exit (range 15) 1096 | -10/Exiles | Met 8R-AWN 1111 | -10/Exiles | Build established: Scavenger-Mutant 1124 | -10/Exiles | Met EX-HEX 1158 | -10/Exiles | Met EX-BIN 1185 | -10/Exiles | Aligned with FarCom system 1186 | -10/Exiles | Given EX-Vault access code 1323 | -10/Exiles | Met EX-DEC 1483 | -10/Exiles | Discovered new exit (range 14) 1678 | -10/Exiles | Visited The Gauntlet 2095 | -10/Exiles | Opened EX-Vault 2103 | -10/Exiles | Found Prototype Energy Cannon 2111 | -10/Exiles | Identified Gui. Plasma Cannon 2167 | -10/Exiles | Warned to stay clear of 0b10 Research branches 2398 | -10/Exiles | Build established: Mutant 2671 | -10/Exiles | Left Exiles lab with Gui. Plasma Cannon 2671 | -10/Exiles | Entered Mines 2707 | -9/Mines | Learned Materials garrison access intel 2747 | -9/Mines | Discovered new exit (range 7) 2755 | -9/Mines | Received a Rocket Launcher from a helpful Derelict 2874 | -9/Mines | Discovered new exit (range 5) 2904 | -9/Mines | Core integrity fell below 20% 3150 | -9/Mines | Destroyed by L-31 Rogue with Katana Last Messages --------------- 02915_ Gui. Plasma Cannon broken. 02915_ Overheating: Short circuit. 02917_ Overheating: Lgt. Armor Plating damaged (-36). 02935_ Acquired 14 matter. 02966_ Acquired 18 matter. 02970_ Acquired 13 matter. 02977_ Acquired 94 matter. 03047_ Dropped Broken Gui. Plasma Cannon. 03047_ Dropped Assault Rifle. 03059_ Acquired Broken Gui. Plasma Cannon. 03068_ Acquired Assault Rifle. 03146_ G-34 Mercenary destroyed. 03146_ Seismic Survey Station disabled. 03146_ Broken Aluminum Leg destroyed. 03146_ Destroyed Broken Aluminum Leg. 03146_ Lgt. Armor Plating destroyed. 03146_ Destroyed Lgt. Armor Plating. 03150_ Lgt. Ion Engine destroyed. [Achievement: First Step to Greatness] Map ----- +----------------------------------------------------+ | #?# < ####????????????????????????? | | ##?## #??############??????????? | | ????## ### #??# """ """ #??????????? | | ?????## #?# #??# """ """ #??????????? | | ??????# #?# #??# """ """ "#######????? | | ?????## ### #??# " #????? | | ?????# #??# [ #????? | | ?????# ######??# [#### #????? | | ?????# #???????# #??# #????? | | ????## #???????# #??# #????? | | ???## ##??################??# #????? | | ???# ##?# #????????????## #????? | | ???# ### ##??????????## #????? | | #??# ## ##?######### ##???? | | #??## ### #???? | | #???## ## ##### ## #??? | | #????## ### #???# ### < #??? | | #?????## ##?# #???# ### #??? | | ####???## #####??# #???# #??? | | ####### ######## ######### #??? | | #????## ##??? | | #### ########### #??????###???? | | ##??# ######?????????# #????????????? | | ????# #??????????????# ###########??? | | ????# #??????????????# #? | | ????# #??????????????# @ """ ?? | | ????# #??????????????### l """ ?? | | ????# #????????????????# = g """??? | | ????# #????????????????# *%= ?? | | ????# #????????????????# ######? | | ????# #????????????????########?????? | | ????# #?????????????????????????????? | | ????# #?????????????????????????????? | | ????? ??????????????????????????????? | | ????? ??????????????????????????????? | | ????? ??????????????????????????????? | | ?????????????????????????????????????? | | ?????????????????????????????????????? | | ?????????????????????????????????????? | | ?????????????????????????????????????? | | ?????????????????????????????????????? | | ?????????????????????????????????????? | | ?????????????????????????????????????? | | ?????????????????????????????????????? | | ?????????????????????????????????????? | | ?????????????????????????????????????? | | ?????????????????????????????????????? | | ?????????????????????????????????????? | | ?????????????????????????????????????? | | ?????????????????????????????????????? | +----------------------------------------------------+ Best States ------------- Heat Dissipation 25 Energy Generation 10 Energy Capacity 250 Matter Stores 315 Matter Capacity 400 Sight Range 18 Robot Scan Range 14 Terrain Scan Density 10 Armor Coverage 150 Evasion (%) 55 Item Schematics ----------------- None Robot Schematics ------------------ None Fabricated ------------ Nothing Alien Tech Used ----------------- None Achievements -------------- First Step to Greatness Risk Taker Storm Trooper Tourist Uninvited Guest Challenges ------------ None Game ------ Seed GuidanceTerrabombWings Manual? 0 Play Time 01:03:36 Cumulative 1.0 hours Start 2024.06.27 @ 20:33:36 End 2024.06.27 @ 21:48:32 Sessions 1 Manual Loads 0 Difficulty Rogue Special Mode None Game No. 1 Rogue 1 Adventurer 0 Explorer 0 Win Type - Total 0 Types 0/0/0/0/0/0/0/0/0 Lore% 1 Gallery% 1 Achievement% 1 Wizard Run 0 Options --------- Layout 1 ASCII 0 Keyboard 0 Movement Numpad Keybinds 0 Fullscreen 1 Font 24/Smallcaps Map View 50x35 Zoom Use 0% Tactical HUD 1 Map Filters NONE Filters NONE Steam 1 RUN: cf5849d3-5db7-4649-8ac0-a3a7db61fa86